bitfinex/quotes_BTCUSD_20251029
["timestamp","ask_amount","ask_price","bid_price","bid_amount"]
[1761766509617,0.27040591,110750.0,110740.0,0.00036286]
[1761766510293,0.27885508,110750.0,110740.0,0.00036286]
[1761766510708,0.28285508,110750.0,110740.0,0.00136286]
[1761766511192,0.27540591,110750.0,110740.0,0.00136286]
[1761766513326,0.61540591,110750.0,110740.0,0.00136286]
[1761766514185,0.43481901,110750.0,110740.0,0.03360286]
[1761766514400,0.09481901,110750.0,110740.0,0.08049286]
[1761766514821,0.005,110750.0,110740.0,0.08049286]
[1761766515293,0.005,110750.0,110740.0,0.26109607]
[1761766515497,0.004,110750.0,110740.0,0.08049286]
[1761766515727,0.004,110750.0,110740.0,0.00136286]
[1761766515931,0.004,110750.0,110740.0,0.00336286]
[1761766516357,0.18057067,110760.0,110740.0,0.00236286]
[1761766516536,0.27038968,110760.0,110740.0,0.00036286]
[1761766516737,0.001,110750.0,110740.0,0.00236286]
[1761766517118,0.27038968,110760.0,110740.0,0.00036286]
[1761766517541,0.28594992,110750.0,110740.0,0.00136286]
[1761766517795,0.61240591,110750.0,110740.0,0.00136286]
[1761766518425,0.61884673,110750.0,110740.0,0.00036286]
[1761766518868,3.65502901,110750.0,110740.0,0.00036286]
[1761766519702,0.65502901,110750.0,110740.0,0.00036286]
[1761766520151,0.65502901,110750.0,110740.0,0.00136286]
[1761766520152,0.65802901,110750.0,110740.0,0.00136286]
[1761766520367,0.65802901,110750.0,110740.0,0.00036286]
[1761766520577,0.65502901,110750.0,110740.0,0.00036286]
[1761766520795,0.66202901,110750.0,110740.0,0.00136286]
[1761766521007,0.65702901,110750.0,110740.0,0.00036286]
[1761766521445,3.66302901,110750.0,110740.0,0.00136286]
[1761766521664,0.73061951,110730.0,110720.0,4e-05]
[1761766521889,3.82892759,110730.0,110720.0,4e-05]
[1761766522091,4.10434093,110730.0,110720.0,4e-05]
[1761766522522,3.65510988,110730.0,110720.0,4e-05]
[1761766522791,3.66510987,110730.0,110720.0,4e-05]
[1761766523408,3.66810987,110730.0,110720.0,4e-05]
[1761766524076,3.87810986,110730.0,110720.0,4e-05]
[1761766524518,3.5668181,110720.0,110710.0,4e-05]
[1761766524727,3.56683442,110710.0,110700.0,0.10952435]
[1761766524950,3.65665343,110710.0,110700.0,0.10952435]
[1761766525169,3.85665343,110710.0,110700.0,0.10952435]
[1761766525625,3.65665343,110710.0,110700.0,0.10952435]
[1761766526056,3.7244332,110710.0,110700.0,0.10952435]
[1761766526470,3.7284332,110710.0,110700.0,0.10952435]
[1761766526914,3.71443321,110710.0,110700.0,0.10952435]
[1761766527129,0.71443321,110710.0,110700.0,0.10952435]
[1761766527354,0.71943321,110710.0,110700.0,0.10952435]
[1761766527566,0.7294332,110710.0,110700.0,0.10952435]
[1761766527772,0.7294332,110710.0,110700.0,0.11040122]
[1761766528209,0.68325093,110710.0,110700.0,0.11040122]
[1761766528416,0.69325092,110710.0,110700.0,0.11040122]
[1761766528629,0.7294332,110710.0,110700.0,0.11040122]
[1761766529493,3.7294332,110710.0,110700.0,0.11040122]
[1761766531746,3.7705932,110710.0,110700.0,0.11040122]
[1761766534475,3.9705932,110710.0,110700.0,1e-08]
[1761766535130,3.9675932,110710.0,110700.0,1e-08]
[1761766535732,3.9725932,110710.0,110700.0,1e-08]
[1761766535946,3.98259319,110710.0,110700.0,1e-08]
[1761766536148,4.01182426,110710.0,110700.0,1e-08]
[1761766536396,3.97759319,110710.0,110700.0,1e-08]
[1761766536598,4.00682426,110710.0,110700.0,1e-08]
[1761766537252,4.00482426,110710.0,110700.0,1e-08]
[1761766537502,4.00782426,110710.0,110700.0,1e-08]
[1761766537791,3.9735932,110710.0,110700.0,1e-08]
[1761766538267,3.9685932,110710.0,110700.0,1e-08]
[1761766538512,3.9695932,110710.0,110700.0,1e-08]
[1761766538748,3.9705932,110710.0,110700.0,1e-08]
[1761766539231,4.00882426,110710.0,110700.0,1e-08]
[1761766539644,4.00482426,110710.0,110700.0,1e-08]
[1761766539831,4.01322819,110710.0,110700.0,1e-08]
[1761766540190,4.21322819,110710.0,110700.0,1e-08]
[1761766540392,3.56686706,110690.0,110670.0,0.01]
[1761766540711,3.65668607,110690.0,110670.0,0.01]
[1761766541088,3.66563932,110690.0,110680.0,0.0004886]
[1761766541553,3.67163932,110690.0,110680.0,0.00063371]
[1761766543110,3.91433932,110690.0,110680.0,0.00063371]
[1761766543552,0.56688339,110680.0,110660.0,0.0004]
[1761766543775,3.66525025,110670.0,110660.0,0.0004]
[1761766543987,3.65169645,110670.0,110660.0,0.0004]
[1761766544203,3.65169645,110670.0,110660.0,0.00083871]
[1761766545114,0.65169645,110670.0,110660.0,0.00083871]
[1761766545369,0.13097901,110670.0,110660.0,0.00083871]
[1761766545615,0.13297901,110670.0,110660.0,0.00083871]
[1761766545836,0.31369645,110670.0,110660.0,0.00083871]
[1761766546063,0.31569645,110670.0,110660.0,0.00083871]
[1761766546286,0.13497901,110670.0,110660.0,0.00083871]
[1761766546501,0.31569645,110670.0,110660.0,0.00083871]
[1761766546728,0.31369645,110670.0,110660.0,0.00083871]
[1761766547177,0.31469645,110670.0,110660.0,0.00083871]
[1761766547396,0.31269645,110670.0,110660.0,0.00083871]
[1761766547619,0.65269645,110670.0,110660.0,0.00083871]
[1761766547852,0.65469645,110670.0,110660.0,0.00083871]
[1761766553574,0.65369645,110670.0,110660.0,0.00083871]
[1761766553994,0.65469645,110670.0,110660.0,0.00083871]
[1761766554197,0.65269645,110670.0,110660.0,0.00083871]
[1761766554574,0.65469645,110670.0,110660.0,0.00083871]
[1761766557172,0.47397901,110670.0,110660.0,0.00083871]
[1761766557369,0.65469645,110670.0,110660.0,0.00083871]
[1761766559059,0.69087873,110670.0,110660.0,0.00083871]
[1761766559276,0.18073377,110660.0,110650.0,0.0004]
[1761766559479,0.27055278,110660.0,110650.0,0.0004]
[1761766560643,0.27155278,110660.0,110650.0,0.0004]
[1761766561067,0.27055278,110660.0,110650.0,0.0004]
[1761766561292,0.30673506,110660.0,110650.0,0.0004]
[1761766561511,3.45851965,110660.0,110650.0,0.0004]
[1761766561725,3.63925342,110660.0,110650.0,0.0004]
[1761766562614,3.63925342,110660.0,110650.0,1e-08]
[1761766562615,3.98041743,110660.0,110650.0,1e-08]
[1761766562846,3.96755633,110660.0,110650.0,1e-08]
[1761766563075,3.99719471,110660.0,110650.0,1e-08]
[1761766563291,3.65760251,110660.0,110650.0,1e-08]
[1761766563514,3.85297816,110660.0,110650.0,1e-08]
[1761766563727,3.85697816,110660.0,110650.0,1e-08]
[1761766564377,3.64497817,110660.0,110650.0,1e-08]
[1761766564584,3.64697817,110660.0,110650.0,1e-08]
[1761766564769,3.65697816,110660.0,110650.0,1e-08]
[1761766565004,3.64697817,110660.0,110650.0,1e-08]
[1761766565201,3.65697816,110660.0,110650.0,0.00021941]
[1761766565348,3.71613704,110660.0,110650.0,0.00021941]
[1761766566314,0.26607114,110660.0,110650.0,0.00021941]
[1761766566656,0.60607114,110660.0,110650.0,0.00021941]
[1761766567265,0.60207114,110660.0,110650.0,0.00021941]
[1761766567458,0.60007114,110660.0,110650.0,0.00021941]
[1761766567665,3.64725341,110660.0,110650.0,0.00021941]
[1761766567867,3.857662,110660.0,110650.0,0.00021941]
[1761766568108,3.655662,110660.0,110650.0,0.00021941]
[1761766568621,3.86238678,110660.0,110650.0,0.00021941]
[1761766568994,3.86138678,110660.0,110650.0,0.00021941]
[1761766569196,3.86338678,110660.0,110650.0,0.00021941]
[1761766570368,4.16853677,110660.0,110650.0,1e-08]
[1761766571632,3.55694872,110640.0,110630.0,0.0004]
[1761766571835,3.64676773,110640.0,110630.0,0.0004]
[1761766572476,3.64676773,110640.0,110630.0,0.00083889]
[1761766572689,0.61058545,110640.0,110630.0,0.00083889]
[1761766572899,0.61073005,110640.0,110630.0,0.00083889]
[1761766573307,0.61273005,110640.0,110630.0,0.00083889]
[1761766573923,0.61373005,110640.0,110630.0,0.00083889]
[1761766574766,0.61273005,110640.0,110630.0,0.00083889]
[1761766574993,0.08996361,110640.0,110630.0,0.00083889]
[1761766575214,0.09096361,110640.0,110630.0,0.00083889]
[1761766575419,0.09296361,110640.0,110630.0,0.00083889]
[1761766575626,0.27373005,110640.0,110630.0,0.00083889]
[1761766575829,0.27173005,110640.0,110630.0,0.00083889]
[1761766576005,0.27073005,110640.0,110630.0,0.00083889]
[1761766576830,0.08996361,110640.0,110630.0,0.00083889]
[1761766577042,0.27073005,110640.0,110630.0,0.00083889]
[1761766577423,0.27273005,110640.0,110630.0,0.00083889]
[1761766577651,0.27073005,110640.0,110630.0,0.00083889]
[1761766578104,0.27273005,110640.0,110630.0,0.00083889]
[1761766581107,0.27073005,110640.0,110630.0,0.00083889]
[1761766581483,0.27273005,110640.0,110630.0,0.00083889]
[1761766581646,0.27073005,110640.0,110630.0,0.00083889]
[1761766582048,0.64991233,110640.0,110630.0,0.00083889]
[1761766583986,3.64991233,110640.0,110630.0,0.00083889]
[1761766584708,3.71777564,110640.0,110630.0,0.00083889]
[1761766585114,3.72620039,110640.0,110630.0,0.00083889]
[1761766585348,3.55696506,110630.0,110620.0,0.00114207]
[1761766585541,3.55696506,110630.0,110570.0,0.04669]
[1761766585542,0.18989065,110590.0,110560.0,0.04909]
[1761766585754,0.08981901,110580.0,110560.0,0.04909]
[1761766586105,0.13097901,110580.0,110570.0,0.04669]
[1761766586317,0.13097901,110580.0,110570.0,0.07845]
[1761766586535,0.13097901,110580.0,110570.0,0.12754]
[1761766586753,0.13097901,110580.0,110570.0,0.12802394]
[1761766587222,0.19909991,110590.0,110570.0,0.30889408]
[1761766587223,0.04116,110590.0,110570.0,0.30889408]
[1761766587485,0.04116,110590.0,110580.0,0.03176]
[1761766587710,0.04116,110590.0,110580.0,0.08085]
[1761766587939,0.04316,110590.0,110580.0,0.03176]
[1761766588165,0.06896587,110600.0,110580.0,0.26171453]
[1761766588412,0.15878488,110600.0,110590.0,0.03176]
[1761766588636,0.28028042,110620.0,110590.0,0.12754]
[1761766588860,0.27063502,110610.0,110590.0,0.12754]
[1761766589086,0.27967579,110610.0,110570.0,0.28618847]
[1761766589313,0.002,110590.0,110580.0,0.22995453]
[1761766589537,0.27967579,110610.0,110590.0,0.04669]
[1761766589770,0.18083182,110600.0,110590.0,0.04669]
[1761766590016,0.62882559,110610.0,110590.0,0.09578]
[1761766590235,0.62882559,110610.0,110590.0,0.07845]
[1761766590236,0.61967525,110610.0,110590.0,0.07845]
[1761766590463,0.001,110600.0,110590.0,0.07845]
[1761766590919,0.62872905,110610.0,110580.0,0.1808641]
[1761766591150,0.33932553,110600.0,110570.0,0.28618847]
[1761766591401,0.04116,110590.0,110570.0,0.00048394]
[1761766591863,0.08981901,110580.0,110570.0,0.00048394]
[1761766592113,0.27068354,110580.0,110570.0,0.00048394]
[1761766592370,0.27068354,110580.0,110570.0,0.00180145]
[1761766592603,0.61068354,110580.0,110570.0,0.00180145]
[1761766593285,0.18092998,110540.0,110530.0,0.0004]
[1761766593543,0.61074899,110540.0,110530.0,0.00054514]
[1761766593786,0.42981901,110540.0,110530.0,0.00054514]
[1761766594025,0.08981901,110540.0,110530.0,0.00054514]
[1761766594262,0.08981901,110540.0,110530.0,0.04723514]
[1761766594501,0.27074899,110540.0,110530.0,0.00054514]
[1761766594991,0.27074899,110540.0,110510.0,0.00190069]
[1761766594992,0.52096272,110520.0,110510.0,0.00190069]
[1761766595221,0.42981901,110520.0,110510.0,0.00190069]
[1761766595444,0.08981901,110520.0,110510.0,0.00190069]
[1761766596129,0.27078173,110520.0,110510.0,0.00190069]
[1761766596368,0.27278173,110520.0,110510.0,0.00190069]
[1761766596628,0.002,110520.0,110510.0,0.04451943]
[1761766596847,0.09181901,110520.0,110510.0,0.00190069]
[1761766597523,0.27378173,110520.0,110510.0,0.00190069]
[1761766597764,0.27178173,110520.0,110510.0,0.00190069]
[1761766597987,0.27078173,110520.0,110510.0,0.00190069]
[1761766598202,0.27278173,110520.0,110510.0,0.00190069]
[1761766598452,3.55716137,110510.0,110500.0,10.58005259]
[1761766598674,3.56716136,110510.0,110500.0,10.43071387]
[1761766598940,3.56716136,110510.0,110500.0,10.17617388]
[1761766598941,3.68238028,110510.0,110500.0,10.17617388]
[1761766599150,3.68238028,110510.0,110500.0,9.86020776]
[1761766599354,3.68238028,110510.0,110500.0,9.80582446]
[1761766599567,3.68238028,110510.0,110500.0,9.7801713]
[1761766599778,3.6107981,110510.0,110500.0,9.7801713]
[1761766600222,0.08981901,110510.0,110500.0,9.7801713]
[1761766600651,0.08981901,110510.0,110500.0,9.79183818]
[1761766600862,0.09281901,110510.0,110500.0,9.7801713]
[1761766601068,0.6137981,110510.0,110500.0,9.7801713]
[1761766601279,0.6117981,110510.0,110500.0,9.7801713]
[1761766601487,0.43081901,110510.0,110500.0,9.7801713]
[1761766601720,0.08981901,110510.0,110500.0,9.7801713]
[1761766601919,0.09181901,110510.0,110500.0,9.7801713]
[1761766602307,0.08981901,110510.0,110500.0,9.7801713]
[1761766602775,0.09181901,110510.0,110500.0,9.7801713]
[1761766603195,0.43181901,110510.0,110500.0,9.7801713]
[1761766603403,0.6127981,110510.0,110500.0,9.7801713]
[1761766604267,0.2727981,110510.0,110500.0,9.7801713]
[1761766604479,0.6107981,110510.0,110500.0,9.7801713]
[1761766604906,0.6127981,110510.0,110500.0,9.7801713]
[1761766605110,0.6107981,110510.0,110500.0,9.7801713]
[1761766605718,0.6007981,110510.0,110500.0,9.7801713]
[1761766605928,0.6017981,110510.0,110500.0,9.7801713]
[1761766606158,0.6027981,110510.0,110500.0,9.7811713]
[1761766606385,0.42181901,110510.0,110500.0,9.7811713]
[1761766606643,0.6027981,110510.0,110500.0,9.7811713]
[1761766607065,0.42181901,110510.0,110500.0,9.7811713]
[1761766607282,0.6027981,110510.0,110500.0,9.7811713]
[1761766608818,0.59729209,110510.0,110500.0,9.7811713]
[1761766609009,0.59629209,110510.0,110500.0,9.7811713]
[1761766609519,0.59629209,110510.0,110500.0,9.7801713]
[1761766610758,0.59629209,110510.0,110500.0,9.7811713]
[1761766610977,0.66450494,110510.0,110500.0,9.7811713]
[1761766618014,0.69171591,110510.0,110500.0,9.7811713]
[1761766618239,3.72789819,110510.0,110500.0,9.7811713]
[1761766618451,3.74262937,110510.0,110500.0,9.7811713]
[1761766618671,3.94262937,110510.0,110500.0,9.32970154]
[1761766618877,3.75101566,110510.0,110500.0,9.18005374]
[1761766619091,3.94901566,110510.0,110500.0,9.15186653]
[1761766619349,3.74801566,110510.0,110500.0,9.12467932]
[1761766619573,3.74601567,110510.0,110500.0,9.09849211]
[1761766619784,0.70983339,110510.0,110500.0,9.09849211]
[1761766619996,0.7051022,110510.0,110500.0,9.09849211]
[1761766620214,0.3651022,110510.0,110500.0,9.09849211]
[1761766620430,0.27167838,110510.0,110500.0,9.09849211]
[1761766620847,0.61167838,110510.0,110500.0,9.09849211]
[1761766621263,0.60867838,110510.0,110500.0,9.09849211]
[1761766621754,0.61067838,110510.0,110500.0,9.09849211]
[1761766622393,0.60567838,110510.0,110500.0,9.09749211]
[1761766622609,0.67259013,110510.0,110500.0,9.09749211]
[1761766622817,3.7207724,110510.0,110500.0,9.09749211]
[1761766623030,3.92550395,110510.0,110500.0,8.654782]
[1761766623247,3.92550395,110510.0,110500.0,8.62759555]
[1761766623451,3.72550395,110510.0,110500.0,8.6004091]
[1761766623870,3.92550395,110510.0,110500.0,8.6004091]
[1761766624477,3.71550396,110510.0,110500.0,8.6004091]
[1761766625716,3.67932168,110510.0,110500.0,8.6004091]
[1761766626122,0.33932168,110510.0,110500.0,8.6004091]
[1761766626278,0.33459013,110510.0,110500.0,8.6004091]
[1761766626484,0.35140112,110510.0,110500.0,8.6004091]
[1761766626687,0.28448937,110510.0,110500.0,8.6004091]
[1761766626895,0.62448937,110510.0,110500.0,8.6004091]
[1761766627259,0.10351028,110510.0,110500.0,8.6004091]
[1761766627768,0.01238629,110510.0,110500.0,8.90818457]
[1761766627992,0.01238629,110510.0,110500.0,8.7271891]
[1761766628214,0.01238629,110510.0,110500.0,8.90818457]
[1761766628441,0.01238629,110510.0,110500.0,9.44519677]
[1761766628678,0.04116,110550.0,110510.0,0.19001425]
[1761766628891,0.14791081,110550.0,110520.0,0.18095151]
[1761766629102,0.14791081,110550.0,110520.0,0.18899964]
[1761766629579,0.32882631,110550.0,110510.0,0.23645425]
[1761766630416,0.001,110510.0,110500.0,8.64845061]
[1761766630631,0.01339,110510.0,110500.0,8.59987061]
[1761766630839,0.01239,110510.0,110500.0,8.59887061]
[1761766631051,0.08981901,110540.0,110510.0,0.18097909]
[1761766631281,0.10660826,110540.0,110530.0,0.08034]
[1761766631491,0.01678925,110540.0,110530.0,0.26128634]
[1761766631698,0.0001445,110540.0,110530.0,0.08034]
[1761766631924,0.0001445,110540.0,110510.0,0.01904894]
[1761766632114,0.0001445,110540.0,110520.0,0.002]
[1761766632348,0.08996351,110540.0,110510.0,0.22703399]
[1761766632575,0.08996351,110540.0,110530.0,0.04793]
[1761766632576,0.10675276,110540.0,110530.0,0.04793]
[1761766632783,0.10775276,110540.0,110530.0,0.003]
[1761766633217,0.10675276,110540.0,110520.0,0.18096256]
[1761766633439,0.10675276,110540.0,110520.0,0.18096206]
[1761766633647,0.10775276,110540.0,110530.0,0.001]
[1761766633865,0.10675276,110540.0,110530.0,0.001]
[1761766634316,0.10675276,110540.0,110520.0,0.18096206]
[1761766634563,0.10675276,110540.0,110520.0,0.18196206]
[1761766634782,0.10675276,110540.0,110530.0,0.0008789]
[1761766635421,0.10775276,110540.0,110530.0,0.0028789]
[1761766635625,0.10675276,110540.0,110530.0,0.0008789]
[1761766635983,0.01693375,110540.0,110530.0,0.0804889]
[1761766636191,0.0001445,110540.0,110530.0,0.0814889]
[1761766636450,0.0011445,110540.0,110530.0,0.26243524]
[1761766636625,0.01793375,110540.0,110530.0,0.30849524]
[1761766636794,0.01693375,110540.0,110530.0,0.30849524]
[1761766636997,0.0011445,110540.0,110530.0,0.31049524]
[1761766637433,0.01793375,110540.0,110530.0,0.1295489]
[1761766637635,0.01793375,110540.0,110530.0,0.31049524]
[1761766638603,0.01793375,110540.0,110530.0,0.44945993]
[1761766638816,0.04116,110590.0,110560.0,0.18993024]
[1761766639029,0.13112404,110590.0,110570.0,0.28572313]
[1761766639236,0.04130503,110590.0,110580.0,0.03168]
[1761766639448,0.00014503,110590.0,110580.0,0.21254453]
[1761766639677,0.00014503,110590.0,110580.0,0.07774]
[1761766639899,0.11161336,110590.0,110560.0,0.09399]
[1761766640120,0.02954,110570.0,110550.0,0.18091232]
[1761766640551,0.03793808,110570.0,110550.0,0.22697056]
[1761766640772,0.12775709,110570.0,110540.0,0.18994203]
[1761766641002,0.321268,110570.0,110530.0,0.37380266]
[1761766641242,0.14038709,110570.0,110540.0,0.18092926]
[1761766641474,0.31768298,110570.0,110530.0,0.23792365]
[1761766641690,0.31768298,110570.0,110530.0,0.22887596]
[1761766641691,0.28334673,110560.0,110530.0,0.22887596]
[1761766641904,0.09821709,110560.0,110530.0,0.23792327]
[1761766642115,0.27911456,110560.0,110530.0,0.28398327]
[1761766642323,0.09821709,110560.0,110550.0,0.03168]
[1761766642536,0.09821709,110560.0,110550.0,0.03268]
[1761766642759,0.00839808,110560.0,110550.0,0.07874]
[1761766642973,0.37793808,110570.0,110550.0,0.07774]
[1761766643180,0.001,110560.0,110550.0,0.07774]
[1761766643389,0.001,110560.0,110550.0,0.03168]
[1761766643601,0.00839808,110560.0,110550.0,0.07774]
[1761766643823,0.64863846,110570.0,110530.0,0.05697731]
[1761766644047,0.01463,110560.0,110550.0,0.00204]
[1761766644259,0.00839808,110560.0,110550.0,0.00104]
[1761766644471,0.00839808,110560.0,110550.0,0.03272]
[1761766644698,0.01363,110560.0,110550.0,0.00147937]
[1761766644915,0.30537434,110560.0,110550.0,0.00147937]
[1761766645127,0.12447709,110560.0,110550.0,0.00147937]
[1761766645333,0.29274434,110560.0,110550.0,0.00047937]
[1761766645553,0.30537434,110560.0,110550.0,0.00047937]
[1761766646397,0.30537434,110560.0,110550.0,0.00147937]
[1761766646620,0.29274434,110560.0,110550.0,0.00147937]
[1761766647043,0.11184709,110560.0,110550.0,0.00147937]
[1761766647256,0.29274434,110560.0,110550.0,0.00147937]
[1761766647699,0.30537434,110560.0,110550.0,0.00147937]
[1761766648145,0.29274434,110560.0,110550.0,0.00147937]
[1761766648576,0.28011434,110560.0,110550.0,0.00147937]
[1761766648783,0.08981901,110560.0,110550.0,0.03315937]
[1761766648990,0.28334626,110560.0,110550.0,0.00147937]
[1761766649206,0.27071626,110560.0,110550.0,0.00147937]
[1761766649853,0.28334626,110560.0,110550.0,0.00147937]
[1761766650713,0.29597626,110560.0,110550.0,0.00147937]
[1761766651161,0.63597626,110560.0,110550.0,0.00147937]
[1761766651378,0.44244901,110560.0,110550.0,0.00147937]
[1761766651600,0.61071626,110560.0,110550.0,0.00147937]
[1761766651839,0.63597626,110560.0,110550.0,0.00147937]
[1761766652231,0.62334626,110560.0,110550.0,0.00147937]
[1761766652679,0.63597626,110560.0,110550.0,0.00147937]
[1761766653973,0.62334626,110560.0,110550.0,0.00147937]
[1761766655516,0.44244901,110560.0,110550.0,0.00147937]
[1761766655746,0.62334626,110560.0,110550.0,0.00147937]
[1761766656601,0.44244901,110560.0,110550.0,0.00147937]
[1761766656812,0.62334626,110560.0,110550.0,0.00147937]
[1761766657036,0.02954,110570.0,110550.0,0.07921937]
[1761766657245,0.30024109,110570.0,110550.0,0.03272]
[1761766657937,0.11935901,110570.0,110550.0,0.03172]
[1761766658152,0.64023989,110570.0,110550.0,0.04948]
[1761766658400,0.01262,110560.0,110550.0,4e-05]
[1761766658655,0.63595626,110560.0,110550.0,4e-05]
[1761766659090,0.62333626,110560.0,110550.0,4e-05]
[1761766659310,0.63595626,110560.0,110550.0,4e-05]
[1761766659533,0.62333626,110560.0,110550.0,4e-05]
[1761766659755,0.63595626,110560.0,110550.0,4e-05]
[1761766659988,0.63595626,110560.0,110550.0,0.00104]
[1761766659989,0.62333626,110560.0,110550.0,0.00104]
[1761766660273,0.63595626,110560.0,110550.0,0.00104]
[1761766660720,0.64435939,110560.0,110550.0,0.00104]
[1761766661181,0.64435939,110560.0,110550.0,0.00204]
[1761766661432,0.64435939,110560.0,110550.0,0.00104]
[1761766661645,0.64535939,110560.0,110550.0,4e-05]
[1761766667141,0.11184214,110560.0,110550.0,4e-05]
[1761766667414,0.00940313,110560.0,110550.0,0.08058]
[1761766667628,0.00940313,110560.0,110550.0,0.08101936]
[1761766668088,0.00840313,110560.0,110550.0,0.08101936]
[1761766668307,0.36954,110570.0,110550.0,0.08201936]
[1761766668525,0.30864068,110570.0,110550.0,0.08158]
[1761766668738,0.12775908,110570.0,110550.0,0.08158]
[1761766669603,0.12775908,110570.0,110550.0,0.08258]
[1761766669815,0.12775908,110570.0,110550.0,0.08058]
[1761766670209,0.12875908,110570.0,110550.0,0.08058]
[1761766670435,0.12875908,110570.0,110550.0,0.31093331]
[1761766670667,0.12875908,110570.0,110550.0,0.13002]
[1761766671294,0.03894007,110570.0,110560.0,0.04261383]
[1761766671509,0.001,110570.0,110560.0,0.0812]
[1761766671740,0.001,110570.0,110560.0,0.26209725]
[1761766671953,0.001,110570.0,110560.0,0.35191626]
[1761766672594,0.00014503,110590.0,110580.0,0.18086453]
[1761766672820,0.00014503,110590.0,110580.0,0.26140453]
[1761766673055,0.00014503,110590.0,110580.0,0.40066354]
[1761766673919,0.00014503,110590.0,110580.0,0.40266354]
[1761766674347,0.00114503,110590.0,110580.0,0.31384453]
[1761766674563,0.02968503,110590.0,110580.0,0.31084453]
[1761766674799,0.03806815,110590.0,110580.0,0.03376]
[1761766675228,0.03806815,110590.0,110580.0,0.26406453]
[1761766675229,0.00852815,110590.0,110580.0,0.26406453]
[1761766675698,0.00014503,110590.0,110580.0,0.21462453]
[1761766675913,0.00014503,110590.0,110580.0,0.26206453]
[1761766676129,0.00114503,110590.0,110580.0,0.35588354]
[1761766676343,0.00114503,110590.0,110580.0,1.09978093]
[1761766676562,0.00114503,110590.0,110580.0,0.35788354]
[1761766676779,0.3784984,110630.0,110600.0,0.18083163]
[1761766677017,0.47684263,110630.0,110610.0,0.03176]
[1761766677219,0.47684263,110630.0,110610.0,0.08054]
[1761766677432,0.61912915,110630.0,110610.0,0.08054]
[1761766677860,0.43834423,110630.0,110610.0,0.08054]
[1761766678073,0.61912818,110630.0,110610.0,0.08054]
[1761766678281,0.61912818,110630.0,110610.0,0.12998]
[1761766678501,0.62834309,110630.0,110610.0,0.12998]
[1761766679137,0.44855914,110630.0,110610.0,0.12998]
[1761766679351,0.62934334,110630.0,110610.0,0.12998]
[1761766679570,0.27061925,110620.0,110610.0,0.001]
[1761766679782,0.09819925,110620.0,110610.0,0.001]
[1761766680000,0.00838024,110620.0,110610.0,0.03276]
[1761766680415,0.54152327,110630.0,110610.0,0.03276]
[1761766680625,0.63034228,110630.0,110610.0,0.001]
[1761766680844,0.62834228,110630.0,110600.0,0.23027073]
[1761766681101,0.02954,110610.0,110600.0,0.18083073]
[1761766681339,0.00838024,110610.0,110600.0,0.18083073]
[1761766681795,0.00936942,110620.0,110610.0,0.18081547]
[1761766682024,0.00936952,110620.0,110610.0,0.26201547]
[1761766682482,0.00936952,110620.0,110610.0,0.35183448]
[1761766683145,0.00836952,110620.0,110610.0,0.36383447]
[1761766683355,0.05081122,110630.0,110620.0,0.18079913]
[1761766683564,0.05081183,110630.0,110620.0,0.35181814]
[1761766683752,0.05081183,110630.0,110620.0,0.0812]
[1761766684215,0.2335992,110630.0,110610.0,0.003]
[1761766684447,0.32341821,110630.0,110610.0,0.003]
[1761766684903,0.14263084,110630.0,110610.0,0.003]
[1761766685139,0.05281183,110630.0,110620.0,0.03176]
[1761766685382,0.05081183,110630.0,110610.0,0.23025492]
[1761766685625,0.05081183,110630.0,110620.0,0.03176]
[1761766685876,0.05081183,110630.0,110620.0,0.0832]
[1761766686104,0.05081183,110630.0,110620.0,0.03376]
[1761766686387,0.05081183,110630.0,110620.0,0.0812]
[1761766686606,0.05081183,110630.0,110620.0,0.26199913]
[1761766687261,0.05181183,110630.0,110620.0,0.26699913]
[1761766687491,0.05081183,110630.0,110620.0,0.35181814]
[1761766687920,0.05181183,110630.0,110620.0,0.35481814]
[1761766688136,0.05181183,110630.0,110620.0,0.44463715]
[1761766688643,0.05181183,110630.0,110620.0,0.44663715]
[1761766689325,0.05181183,110630.0,110620.0,0.45663714]
[1761766689585,0.05181183,110630.0,110620.0,0.45463714]
[1761766689875,0.05181183,110630.0,110620.0,0.35181814]
[1761766689876,0.05081183,110630.0,110620.0,0.35181814]
[1761766690104,0.05181183,110630.0,110620.0,0.35481814]
[1761766690327,0.05281183,110630.0,110620.0,0.36181814]
[1761766690538,0.05181183,110630.0,110620.0,0.35481814]
[1761766690723,0.05181183,110630.0,110620.0,0.40908149]
[1761766691012,0.05281183,110630.0,110620.0,0.41308149]
[1761766691219,0.05181183,110630.0,110620.0,0.40908149]
[1761766691446,0.05081183,110630.0,110620.0,0.40608149]
[1761766691671,0.05181183,110630.0,110620.0,0.17801901]
[1761766691882,0.05181183,110630.0,110620.0,0.35881814]
[1761766692303,0.05181183,110630.0,110620.0,0.35681814]
[1761766692525,0.05281183,110630.0,110620.0,0.35981814]
[1761766693191,0.05281183,110630.0,110620.0,0.41388149]
[1761766694147,0.05281183,110630.0,110620.0,1.16577887]
[1761766694387,0.05281183,110630.0,110620.0,0.42388148]
[1761766694843,0.05281183,110630.0,110620.0,1.16577887]
[1761766695535,0.05281183,110630.0,110620.0,1.54196115]
[1761766695764,0.05281183,110630.0,110620.0,1.55196114]
[1761766695956,0.0002,110660.0,110650.0,0.1907501]
[1761766696267,0.0002,110660.0,110650.0,0.44348753]
[1761766696268,0.00068317,110660.0,110650.0,0.44348753]
[1761766696946,0.00068317,110660.0,110650.0,0.39271912]
[1761766697861,0.00168317,110660.0,110650.0,0.39871912]
[1761766698303,0.00168317,110660.0,110650.0,0.41171911]
[1761766698570,0.00168317,110660.0,110650.0,1.1536165]
[1761766698809,0.00168317,110660.0,110650.0,1.18979878]
[1761766699036,0.00168317,110660.0,110650.0,1.27961779]
[1761766699497,0.00168317,110660.0,110650.0,1.62961778]
[1761766699750,0.00321285,110690.0,110680.0,0.18070112]
[1761766699986,0.00335777,110690.0,110680.0,0.34936013]
[1761766700238,0.00335777,110690.0,110680.0,1.14706751]
[1761766700468,0.00335777,110690.0,110680.0,0.49498913]
[1761766700692,0.00335777,110690.0,110680.0,1.23688652]
[1761766700928,0.00335777,110690.0,110680.0,1.2730688]
[1761766701160,0.00335777,110690.0,110680.0,1.28506879]
[1761766701407,0.00335777,110690.0,110680.0,0.5431714]
[1761766701632,0.0002,110740.0,110730.0,0.18061952]
[1761766701881,0.00034486,110740.0,110720.0,0.04723]
[1761766702119,0.00034486,110740.0,110720.0,0.09304]
[1761766702386,0.00034486,110740.0,110730.0,0.03161]
[1761766702857,0.14812356,110750.0,110730.0,0.03161]
[1761766703090,0.0271438,110760.0,110730.0,0.21222402]
[1761766703315,0.30664256,110760.0,110730.0,0.30753194]
[1761766703556,0.12606994,110760.0,110750.0,0.03161]
[1761766703789,0.12606994,110760.0,110750.0,0.07784]
[1761766703790,0.00910713,110760.0,110750.0,0.07784]